bitfinex-derivatives/quotes_ETHF0:USTF0_20250411
["timestamp","ask_amount","ask_price","bid_price","bid_amount"]
[1744336515969,6.3887,1540.1,1540.0,0.00971001]
[1744336516169,3.2078,1540.2,1540.0,0.00971001]
[1744336516369,3.2078,1540.2,1540.1,1.2995]
[1744336516672,5.0892,1540.3,1540.0,4.91721001]
[1744336516873,5.0892,1540.3,1540.2,1.29941]
[1744336517469,9.2248,1540.4,1540.3,1.29933]
[1744336517675,15.69049,1540.4,1540.2,1.29937]
[1744336517974,5.1664,1540.3,1540.2,1.29937]
[1744336519969,3.2078,1540.4,1540.3,1.29933]
[1744336520866,3.2078,1540.4,1540.2,4.8773]
[1744336521174,1.29941,1540.2,1540.1,0.78203287]
[1744336521378,1.29941,1540.2,1540.0,12.50024001]
[1744336521572,5.1376,1540.1,1540.0,12.50024001]
[1744336521771,6.4371,1540.1,1540.0,0.00971001]
[1744336525973,11.4371,1540.1,1540.0,0.00971001]
[1744336527781,17.4531,1540.1,1540.0,0.00971001]
[1744336528481,3.24945,1539.8,1539.2,9.81504204]
[1744336528676,1.30013,1539.4,1539.2,15.15384204]
[1744336528879,5.1521,1539.3,1539.2,16.45410204]
[1744336530885,0.00971565,1539.4,1539.3,1.30017]
[1744336531184,5.19261565,1539.4,1539.2,16.45405204]
[1744336531375,5.19261565,1539.4,1539.3,1.30017]
[1744336531571,5.19261565,1539.4,1539.2,16.45403204]
[1744336531882,6.49273565,1539.4,1539.2,5.3388]
[1744336532382,1.30017,1539.3,1539.2,5.3388]
[1744336532584,6.48307,1539.3,1539.2,5.3388]
[1744336532780,5.1829,1539.3,1539.2,5.3388]
[1744336532979,5.1829,1539.3,1539.2,6.63906]
[1744336533180,1.30982565,1539.4,1539.2,6.63906]
[1744336533382,6.28202565,1539.4,1539.2,6.63906]
[1744336533589,1.30023,1539.3,1539.1,1.30034]
[1744336533780,1.30986565,1539.4,1539.2,1.30022]
[1744336534085,0.00971565,1539.4,1539.3,6.62967]
[1744336534282,0.00971565,1539.4,1539.3,9.83747]
[1744336534489,1.29971,1539.9,1539.7,1.29979]
[1744336534684,6.27191,1539.9,1539.7,1.29979]
[1744336534989,6.27191,1539.9,1539.8,5.3295]
[1744336535482,1.2998,1539.8,1539.6,1.29986]
[1744336535687,6.272,1539.8,1539.7,0.00971565]
[1744336535879,4.9722,1539.8,1539.7,1.30954565]
[1744336536079,4.9722,1539.8,1539.7,6.25714565]
[1744336536280,8.54941565,1540.0,1539.7,6.25714565]
[1744336536281,0.00971565,1540.0,1539.7,8.16511565]
[1744336536482,4.98651565,1540.0,1539.7,8.16511565]
[1744336536682,1.29966,1539.9,1539.7,6.25708565]
[1744336537892,6.28614565,1540.0,1539.8,1.29972]
[1744336538283,6.28614565,1540.0,1539.7,6.25707565]
[1744336538483,6.28614565,1540.0,1539.7,4.95731565]
[1744336538679,6.28614565,1540.0,1539.8,1.29973]
[1744336538994,4.98651565,1540.0,1539.7,4.95731565]
[1744336539186,4.98651565,1540.0,1539.9,1.29966]
[1744336541296,4.98651565,1540.0,1539.7,4.95731565]
[1744336541492,3.2078,1539.9,1539.7,0.00971565]
[1744336541697,4.9075,1539.8,1539.7,1.30949565]
[1744336543198,6.20725,1539.8,1539.7,0.00971565]
[1744336543896,11.20725,1539.8,1539.7,0.00971565]
[1744336544099,20.25075,1539.8,1539.7,0.00971565]
[1744336545885,1.30026,1539.2,1539.0,14.67010728]
[1744336546091,4.50793,1539.4,1539.1,1.30028]
[1744336546290,5.1782,1539.3,1539.1,1.30028]
[1744336546595,3.2078,1539.6,1539.4,1.30005]
[1744336546896,3.2078,1539.6,1539.5,5.2982]
[1744336547096,4.50772,1539.6,1539.5,5.2982]
[1744336547995,3.2078,1539.6,1539.5,5.2982]
[1744336548400,3.2078,1539.6,1539.5,6.5982]
[1744336548597,6.01,1539.8,1539.6,1.29992]
[1744336548792,6.01,1539.8,1539.6,6.43772]
[1744336549099,9.86943,1539.9,1539.6,6.43772]
[1744336549299,9.86943,1539.9,1539.7,5.1378]
[1744336549603,1.29975,1539.8,1539.7,5.1378]
[1744336549792,6.66165,1539.8,1539.7,5.1378]
[1744336550098,5.3619,1539.8,1539.7,5.1378]
[1744336550490,5.3619,1539.8,1539.7,6.43763]
[1744336551097,4.50752,1539.9,1539.7,5.1378]
[1744336551295,9.51292,1539.9,1539.8,5.1607]
[1744336552197,3.2078,1539.9,1539.8,6.46045]
[1744336552502,6.31472565,1540.0,1539.8,6.46045]
[1744336552702,6.31472565,1540.0,1539.9,5.1607]
[1744336553201,1.29973,1539.9,1539.7,9.0268]
[1744336553404,6.30513,1539.9,1539.7,14.1875]
[1744336553603,8.2132,1539.9,1539.7,9.0268]
[1744336553808,6.30506,1539.9,1539.8,5.1607]
[1744336554002,5.0054,1539.9,1539.8,5.1607]
[1744336554403,5.0054,1539.9,1539.8,6.46045]
[1744336554802,5.0054,1539.9,1539.8,5.1607]
[1744336556000,5.0054,1539.9,1539.7,5.82547]
[1744336556205,1.29975,1539.8,1539.6,7.53156119]
[1744336556600,4.9216,1539.8,1539.7,6.74273]
[1744336556801,10.52712565,1540.0,1539.8,1.29971]
[1744336557094,14.14911565,1540.0,1539.9,5.4429]
[1744336557299,10.94131565,1540.0,1539.9,6.74256]
[1744336557503,4.93131565,1540.0,1539.9,5.4429]
[1744336557708,4.93131565,1540.0,1539.9,6.74256]
[1744336558298,6.23089565,1540.0,1539.9,5.4429]
[1744336559004,4.93131565,1540.0,1539.9,6.74256]
[1744336560006,0.00971565,1540.0,1539.9,6.74256]
[1744336560302,3.2078,1540.4,1540.3,1.29933]
[1744336560700,3.2078,1540.4,1540.2,1.29935]
[1744336560900,1.29933,1540.3,1540.2,4.9718]
[1744336561106,5.3569,1540.3,1540.1,2.08825119]
[1744336561409,6.65625,1540.3,1540.1,4.9718]
[1744336561801,6.65631,1540.2,1540.0,0.00971565]
[1744336562006,6.6564,1540.1,1540.0,0.00971565]
[1744336562204,5.3569,1540.1,1540.0,0.00971565]
[1744336562404,5.3569,1540.1,1540.0,4.98151565]
[1744336562607,6.6564,1540.1,1540.0,4.98151565]
[1744336562800,6.6564,1540.1,1540.0,0.00971565]
[1744336567512,5.3569,1540.1,1540.0,0.00971565]
[1744336567711,5.3569,1540.1,1540.0,4.95091565]
[1744336568014,6.6564,1540.1,1540.0,0.00971565]
[1744336572016,12.6534,1540.1,1540.0,0.00971565]
[1744336573314,6.6564,1540.1,1540.0,0.00971565]
[1744336579119,5.3569,1540.1,1540.0,0.00971565]
[1744336579320,3.21751565,1540.4,1540.0,5.00971565]
[1744336579621,4.51677565,1540.4,1540.1,9.386]
[1744336579819,4.51677565,1540.4,1540.2,6.38789]
[1744336580015,4.51677565,1540.4,1540.3,5.0885]
[1744336580319,3.21751565,1540.4,1540.1,4.2975]
[1744336580526,1.29941,1540.2,1540.1,4.2975]
[1744336580719,1.2995,1540.1,1540.0,0.00971565]
[1744336581020,6.5713,1540.1,1540.0,0.00971565]
[1744336581623,5.2718,1540.1,1540.0,0.00971565]
[1744336582011,6.5713,1540.1,1540.0,4.72521565]
[1744336582424,1.2995,1540.1,1540.0,4.72521565]
[1744336584024,6.3683,1540.1,1540.0,0.00971565]
[1744336585924,4.50726,1540.2,1540.0,0.00971565]
[1744336586227,3.2078,1540.2,1540.0,4.26941565]
[1744336586415,4.51679565,1540.4,1540.2,1.29937]
[1744336586615,4.51679565,1540.4,1540.3,5.1654]
[1744336587123,3.2078,1540.7,1540.3,19.3702]
[1744336587327,16.0938,1541.1,1540.5,6.4557]
[1744336587527,8.0692,1541.1,1540.6,4.3472]
[1744336587828,1.29899,1540.7,1540.6,4.3472]
[1744336588036,4.50679,1540.7,1540.6,0.79281464]
[1744336588425,1.29907,1540.6,1540.5,4.9793]
[1744336588618,5.98717,1540.6,1540.5,4.9793]
[1744336591525,3.2078,1540.7,1540.6,1.29907]
[1744336591831,6.00571565,1540.8,1540.6,1.29907]
[1744336592027,7.30461565,1540.8,1540.7,4.7742]
[1744336592223,6.46021565,1540.8,1540.7,4.7742]
[1744336592426,1.299,1540.7,1540.5,1.2991]
[1744336592722,9.6584,1540.7,1540.6,4.7742]
[1744336592922,6.4506,1540.7,1540.6,4.7742]
[1744336593118,8.3594,1540.7,1540.6,4.7742]
[1744336593327,1.30866565,1540.8,1540.6,4.7742]
[1744336593836,1.29899,1540.7,1540.6,4.7742]
[1744336594334,6.42438565,1540.8,1540.6,4.7742]
[1744336594536,5.12541565,1540.8,1540.6,4.7742]
[1744336594834,1.29899,1540.7,1540.6,4.7742]
[1744336595026,6.42437565,1540.8,1540.6,4.7742]
[1744336595629,1.29899,1540.7,1540.6,4.7742]
[1744336596330,5.12541565,1540.8,1540.6,6.07325]
[1744336596527,1.30865565,1540.8,1540.6,6.07325]
[1744336596928,6.08505565,1540.8,1540.7,4.8079]
[1744336598832,0.00971565,1540.8,1540.7,4.8079]
[1744336599033,0.00971565,1540.8,1540.7,6.10689]
[1744336599637,0.00971565,1540.8,1540.7,4.8079]
[1744336599837,0.00971565,1540.8,1540.7,6.10689]
[1744336600332,0.00971565,1540.8,1540.7,4.8079]
[1744336600539,6.30071565,1540.8,1540.7,4.8079]
[1744336600933,5.00181565,1540.8,1540.7,6.10689]
[1744336601740,0.00971565,1540.8,1540.7,6.10689]
[1744336606131,0.00971565,1540.8,1540.7,10.45369]
[1744336607743,5.978,1541.4,1541.1,1.29862]
[1744336608041,1.29848,1541.3,1541.2,4.7914]
[1744336608234,6.22268,1541.3,1541.2,4.7914]
[1744336608933,4.9242,1541.3,1541.2,6.08997]
[1744336609335,0.00971565,1541.4,1541.3,1.29848]
[1744336609544,1.30811565,1541.4,1541.2,9.45463]
[1744336609741,6.17188,1541.3,1541.2,13.0744]
[1744336609942,5.852,1542.3,1541.2,21.76849643]
[1744336610239,25.26915602,1542.6,1542.2,3.2078]
[1744336610547,25.26915602,1542.6,1542.3,6.2159]
[1744336610548,25.25604374,1542.6,1542.3,6.2159]
[1744336610739,25.25604374,1542.6,1542.4,6.21585]
[1744336610940,28.46384374,1542.6,1542.4,4.9183]
[1744336611246,1.29751,1542.5,1542.3,0.00971565]
[1744336611543,3.2078,1542.4,1542.3,0.00971565]
[1744336612339,9.1858,1542.6,1542.3,1.30735565]
[1744336612643,3.2078,1542.6,1542.3,0.00971565]
[1744336613145,4.3907,1542.5,1542.3,1.30734565]
[1744336613637,4.3907,1542.5,1542.4,5.0036]
[1744336613830,4.3907,1542.5,1542.3,1.30734565]
[1744336614236,4.3907,1542.5,1542.4,6.30116]
[1744336614436,4.3907,1542.5,1542.4,5.0036]
[1744336615138,4.3907,1542.5,1542.3,1.30729565]
[1744336615345,5.0017,1542.4,1542.3,1.30729565]
[1744336616141,5.0017,1542.4,1542.3,1.30735565]
[1744336616342,3.2078,1542.6,1542.3,0.00971565]
[1744336616543,8.2095,1542.6,1542.4,1.29753]
[1744336616737,8.2095,1542.6,1542.4,6.28613]
[1744336617545,8.2095,1542.6,1542.4,4.9886]
[1744336620044,8.2095,1542.6,1542.4,6.28613]
[1744336620748,8.2095,1542.6,1542.4,4.9886]
[1744336620940,8.2095,1542.6,1542.4,6.28614]
[1744336621438,8.2095,1542.6,1542.5,1.29747]
[1744336621439,3.2078,1542.6,1542.5,1.29747]
[1744336621641,3.2078,1542.6,1542.5,10.44057]
[1744336622048,0.00971565,1542.7,1542.6,1.29739]
[1744336622644,0.00971565,1542.7,1542.5,9.1431]
[1744336622847,4.50527,1542.6,1542.3,0.00971565]
[1744336623150,4.9733,1542.5,1542.3,0.00971565]
[1744336623444,4.9733,1542.5,1542.3,4.75291565]
[1744336623647,4.9733,1542.5,1542.3,6.05052565]
[1744336624143,4.50536,1542.4,1542.3,0.00971565]
[1744336624443,4.49128065,1542.4,1542.3,0.00971565]
[1744336624839,9.49128065,1542.4,1542.3,0.00971565]
[1744336625141,3.24411,1542.3,1541.7,4.7318]
[1744336625342,3.2078,1541.9,1541.7,6.01682772]
[1744336625744,1.2979,1542.0,1541.7,6.01682772]
[1744336625745,5.1217,1542.0,1541.8,1.29806]
[1744336625944,6.41964,1542.0,1541.6,10.47897]
[1744336626146,1.29798,1541.9,1541.6,10.47899]
[1744336626347,5.1217,1541.8,1541.6,10.48870565]
[1744336627553,3.21751565,1541.9,1541.7,1.29812]
[1744336628046,9.20693565,1541.9,1541.6,10.48868565]
[1744336628450,3.21751565,1541.9,1541.7,5.1638]
[1744336628651,4.51551565,1541.9,1541.7,5.1638]
[1744336628842,9.20691565,1541.9,1541.7,5.1638]
[1744336629038,9.20691565,1541.9,1541.8,1.29806]
[1744336629039,0.00971565,1541.9,1541.8,1.29806]
[1744336629442,0.00971565,1541.9,1541.8,9.50586]
[1744336629645,0.46547525,1542.5,1542.3,1.29759]
[1744336629646,3.2078,1542.5,1542.3,1.29759]
[1744336629844,5.98888,1542.5,1542.3,1.29759]
[1744336630148,5.98888,1542.5,1542.4,4.7223]
[1744336630549,7.8992,1542.5,1542.1,1.29775]
[1744336630752,1.2976,1542.4,1542.2,4.7223]
[1744336630950,1.2976,1542.4,1542.2,6.02002]
[1744336631150,9.19673,1542.5,1542.2,6.02002]
[1744336631353,3.2078,1542.5,1542.4,1.29756]
[1744336631546,6.09653565,1542.6,1542.4,1.29756]
[1744336631742,6.09653565,1542.6,1542.5,4.7223]
[1744336632651,4.5048,1543.1,1542.5,16.17374]
[1744336632860,4.5048,1543.1,1542.6,4.1707]
[1744336633153,4.5048,1543.1,1542.9,1.29711]
[1744336633355,4.5048,1543.1,1543.0,5.1616]
[1744336633549,3.2078,1543.1,1543.0,5.1616]
[1744336634057,4.50477,1543.1,1543.0,5.1616]
[1744336634955,8.2078,1543.1,1542.7,5.959]
[1744336635150,1.29716,1542.9,1542.7,11.1206]
[1744336635349,5.0141,1542.8,1542.7,11.10748772]
[1744336636057,5.0141,1542.8,1542.4,0.00971565]
[1744336636253,3.2078,1542.7,1542.4,4.84491565]
[1744336636449,4.50527,1542.5,1542.4,0.00971565]
[1744336636847,14.63987,1542.5,1542.4,0.00971565]
[1744336637751,16.58623,1542.5,1541.9,15.77204204]
[1744336637955,3.2078,1542.2,1541.9,14.65024204]
[1744336638153,6.43247,1542.1,1541.8,8.54296]
[1744336638452,1.29802,1541.9,1541.6,6.13341]
[1744336638657,1.29802,1541.9,1541.7,4.8352]
[1744336638958,4.50586,1541.8,1541.7,4.8352]
[1744336639260,3.2078,1541.8,1541.7,4.8352]
[1744336640155,9.42376,1541.8,1541.7,4.8352]
[1744336640751,1.29815,1541.7,1541.6,0.00971565]
[1744336640955,6.21605,1541.7,1541.6,0.00971565]
[1744336642858,11.21605,1541.7,1541.6,0.00971565]
[1744336643357,17.17405,1541.7,1541.6,0.00971565]
[1744336643860,1.2984,1541.4,1541.3,5.0447]
[1744336644161,3.2078,1541.4,1541.3,5.0447]
[1744336644658,9.582,1541.4,1541.3,5.0447]
[1744336645259,8.2836,1541.4,1541.3,5.0447]
[1744336645460,3.2078,1541.4,1541.3,5.0447]
[1744336646359,3.2078,1541.4,1541.3,6.34318]
[1744336647455,4.50609,1541.6,1541.4,1.29837]
[1744336647663,4.50609,1541.6,1541.4,9.2489]
[1744336648261,3.2078,1541.6,1541.4,9.2489]
[1744336648454,9.34811,1541.8,1541.6,1.29822]
[1744336648759,9.34811,1541.8,1541.7,4.9637]
[1744336649555,3.2078,1541.8,1541.7,4.9637]
[1744336650055,3.2078,1541.8,1541.7,6.26185]
[1744336650755,1.29799,1541.9,1541.7,6.26185]
[1744336652658,1.29799,1541.9,1541.8,4.2718]
[1744336653052,1.29799,1541.9,1541.4,3.2078]
[1744336653053,4.7661,1541.9,1541.4,3.2078]
[1744336653255,4.7661,1541.9,1541.3,5.1085]
[1744336653256,3.2078,1541.8,1541.3,5.1085]
[1744336653453,4.50592,1541.8,1541.6,1.29822]
[1744336653666,3.2078,1541.8,1541.7,5.1085]
[1744336653867,4.50586,1541.8,1541.7,5.1085]
[1744336654966,0.00971565,1542.0,1541.9,1.29798]
[1744336655366,0.00971565,1542.0,1541.9,11.26908]
[1744336655772,0.00971565,1542.0,1541.9,17.22808]
[1744336655978,4.50528,1542.5,1542.3,1.29758]
[1744336656271,4.50528,1542.5,1542.4,4.9711]
[1744336656473,9.65528,1542.5,1542.4,4.9711]
[1744336656670,9.65528,1542.5,1542.1,4.208]
[1744336656671,1.29762,1542.4,1542.1,5.50573]
[1744336656872,5.15,1542.3,1542.2,4.9711]
[1744336657166,1.29773,1542.2,1542.1,0.00971565]
[1744336657963,6.33453,1542.2,1542.1,0.00971565]
[1744336663777,3.24453,1542.1,1541.4,4.3263]
[1744336663976,1.29818,1541.7,1541.5,4.8944]
[1744336665077,1.29831,1541.5,1541.4,0.00971565]
[1744336665670,6.18411,1541.5,1541.4,0.00971565]
[1744336668172,1.29857,1541.2,1541.1,9.81504204]
[1744336668372,4.50637,1541.2,1541.1,9.81504204]
[1744336668780,4.50637,1541.2,1540.9,24.35029033]
[1744336668781,1.29874,1541.0,1540.9,4.7647]
[1744336669083,1.2989,1540.8,1540.7,4.1673]
[1744336669381,3.2078,1541.0,1540.8,1.29888]
[1744336669680,3.2078,1541.0,1540.9,4.7647]
[1744336670979,4.50654,1541.0,1540.9,4.7647]
[1744336671167,4.50654,1541.0,1540.7,5.46624]
[1744336671373,4.50654,1541.0,1540.7,10.18374]
[1744336671580,1.29885,1540.9,1540.7,8.8848]
[1744336672179,4.50659,1541.0,1540.7,8.8848]
[1744336672371,4.50659,1541.0,1540.8,1.29887]
[1744336672576,4.50659,1541.0,1540.9,4.7175]
[1744336673184,3.2078,1541.0,1540.9,6.01632]
[1744336673378,3.2078,1541.0,1540.9,11.01632]
[1744336674182,4.50654,1541.0,1540.9,4.7175]
[1744336674378,3.2078,1541.0,1540.9,4.7175]
[1744336674580,3.2078,1541.0,1540.9,6.01632]
[1744336674878,1.29871,1541.1,1540.9,6.01632]
[1744336675286,3.2078,1541.2,1541.0,4.215]
[1744336675488,3.2078,1541.2,1541.1,4.9316]
[1744336675688,9.22553,1541.2,1541.1,4.9316]
[1744336676492,1.29877,1541.0,1540.7,10.1593]
[1744336676690,1.29883,1540.9,1540.8,4.7179]
[1744336676881,6.01793,1540.9,1540.8,4.7179]
[1744336677689,6.01792,1540.9,1540.8,4.7179]
[1744336678690,4.7191,1540.9,1540.8,4.7179]
[1744336678891,3.2078,1541.2,1540.8,6.01678]
[1744336679090,1.29876,1541.0,1540.9,4.8034]
[1744336679277,4.50656,1541.0,1540.9,4.8034]
[1744336679483,1.2989,1540.8,1540.7,4.1673]
[1744336679696,1.2989,1540.8,1540.7,8.9707]
[1744336680185,5.0693,1540.9,1540.7,10.26967]
[1744336680390,1.29883,1540.9,1540.8,4.8034]
[1744336680592,8.2771,1541.0,1540.8,4.8034]
[1744336680593,6.3681,1541.0,1540.8,4.8034]
[1744336681186,8.2771,1541.0,1540.8,4.8034]
[1744336681383,3.2078,1541.2,1540.9,1.29877]
[1744336681583,4.50643,1541.2,1541.0,4.8034]
[1744336681784,1.29865,1541.1,1541.0,4.8034]
[1744336682181,7.9498,1541.2,1541.0,4.8034]
[1744336682384,4.50643,1541.2,1541.0,4.8034]
[1744336682990,4.50643,1541.2,1541.0,6.10213]
[1744336683190,3.2078,1541.2,1541.1,1.29865]
[1744336683389,4.50637,1541.2,1541.1,4.9095]
[1744336684089,3.2078,1541.4,1541.1,9.9095]
[1744336684292,7.95951565,1541.6,1541.2,4.1953]
[1744336684591,3.21751565,1541.6,1541.2,9.1048]
[1744336684793,1.29848,1541.3,1541.2,9.1048]
[1744336685385,4.50626,1541.4,1541.2,9.1048]
[1744336685585,4.50626,1541.4,1541.3,5.0688]
[1744336686089,1.29835,1541.5,1541.3,6.36728]
[1744336686396,1.29835,1541.5,1541.3,6.36722]
[1744336686597,1.29835,1541.5,1541.4,5.0688]
[1744336687489,1.30800565,1541.6,1541.4,5.0688]
[1744336687885,1.29831,1541.5,1541.4,5.0688]
[1744336688291,4.51581565,1541.6,1541.4,5.0688]
[1744336688589,4.51581565,1541.6,1541.4,6.3672]
[1744336688999,4.51581565,1541.6,1541.4,5.0688]
[1744336691102,1.30801565,1541.6,1541.4,5.0688]
[1744336691300,1.29831,1541.5,1541.4,5.0688]
[1744336691704,4.51580565,1541.6,1541.4,5.0688]
[1744336691998,4.51580565,1541.6,1541.4,6.3672]
[1744336692302,1.30797565,1541.6,1541.4,6.3672]
[1744336692504,1.30797565,1541.6,1541.5,4.9982]
[1744336693200,1.30797565,1541.6,1541.5,6.29651]
[1744336693201,0.00971565,1541.6,1541.5,6.29651]
[1744336693397,0.00971565,1541.6,1541.5,15.54081]
[1744336693597,3.2078,1542.2,1541.6,3.24558]
[1744336693894,1.29777,1542.2,1541.9,1.29791]
[1744336694095,1.29777,1542.2,1541.8,3.2078]
[1744336694096,1.29777,1542.2,1542.0,10.24239]
[1744336694295,4.50542,1542.4,1542.1,5.99798]
[1744336694495,5.97782,1542.4,1542.2,4.7002]
[1744336694893,1.29764,1542.3,1542.2,4.7002]
[1744336695204,1.29789,1542.0,1541.9,0.7773329]
[1744336695506,1.29803,1541.9,1541.7,4.7002]
[1744336695698,1.29794,1542.0,1541.7,5.99831]
[1744336695889,9.18586,1542.1,1541.8,5.99826]
[1744336696095,4.50551,1542.3,1542.0,1.29789]
[1744336696395,4.50551,1542.3,1541.9,4.7002]
[1744336696396,1.29773,1542.2,1542.1,8.8605]
[1744336696601,5.97793,1542.2,1542.1,8.8605]
[1744336697303,4.6802,1542.2,1542.1,8.8605]
[1744336698005,5.97793,1542.2,1542.1,8.8605]
[1744336698696,5.97793,1542.2,1542.1,4.7002]
[1744336699002,4.6802,1542.2,1542.1,4.7002]
[1744336699203,4.6802,1542.2,1542.1,5.99801]
[1744336699504,8.72915565,1542.5,1542.2,1.29773]
[1744336699796,0.00971565,1542.5,1542.4,1.29756]
[1744336700399,0.00971565,1542.5,1542.4,4.9628]
[1744336700600,1.30718565,1542.5,1542.4,4.9628]
[1744336700800,0.00971565,1542.5,1542.4,4.9628]
[1744336701502,0.00971565,1542.5,1542.4,6.26036]
[1744336703005,1.30721565,1542.5,1542.2,1.30740565]
[1744336703207,1.29756,1542.4,1542.3,5.1151]
[1744336703409,6.42276,1542.4,1542.3,5.1151]
[1744336704610,1.29764,1542.3,1542.2,4.08211565]
[1744336704910,1.29764,1542.3,1542.2,0.00971565]
[1744336704911,9.63064,1542.3,1542.2,0.00971565]
[1744336705207,8.333,1542.3,1542.2,0.00971565]
[1744336705408,5.1252,1542.3,1542.2,0.00971565]
[1744336705611,5.1252,1542.3,1542.2,5.12481565]
[1744336706412,7.30951565,1542.5,1542.2,5.12481565]
[1744336706612,4.9599,1542.4,1542.2,6.42252565]
[1744336706812,4.9599,1542.4,1542.3,4.8897]
[1744336707112,4.51503565,1542.5,1542.3,4.8897]
[1744336707314,3.21751565,1542.5,1542.3,4.8897]
[1744336707511,9.47489565,1542.5,1542.3,4.8897]
[1744336707911,0.00971565,1542.5,1542.4,1.29756]
[1744336708103,9.09458,1543.1,1542.4,1.29756]
[1744336708104,3.2078,1543.1,1542.5,3.24369]
[1744336708305,8.1677,1543.6,1543.3,1.29678]
[1744336708603,1.29682,1543.3,1543.0,5.929]
[1744336708799,3.2078,1543.3,1543.1,4.8897]
[1744336709003,8.1677,1543.3,1543.1,4.8897]
[1744336709406,8.1677,1543.3,1543.1,6.18666]
[1744336709608,3.2078,1543.3,1543.1,6.18666]
[1744336709810,3.2078,1543.3,1543.2,4.8691]
[1744336710015,4.50465,1543.3,1543.0,4.15811565]
[1744336710315,3.2078,1543.3,1543.2,1.29688]
[1744336710502,0.00971565,1543.4,1543.2,1.29688]
[1744336710707,0.00971565,1543.4,1543.3,4.8691]
[1744336711119,3.21751565,1543.4,1543.3,4.8691]
[1744336711709,1.30643565,1543.4,1543.3,4.8691]
[1744336711907,3.21751565,1543.4,1543.0,10.08611565]
[1744336712108,4.51423565,1543.4,1543.1,6.16605]
[1744336712312,3.21751565,1543.4,1543.2,4.9695]
[1744336712520,0.00971565,1543.4,1543.2,4.9695]
[1744336713318,0.00971565,1543.4,1543.2,6.26636]
[1744336713720,0.00971565,1543.4,1543.2,4.9695]
[1744336713913,0.00971565,1543.4,1543.3,1.2968]
[1744336714311,0.00971565,1543.4,1543.3,12.2238]
[1744336715017,3.2078,1543.9,1543.7,1.29644]
[1744336715217,3.2078,1543.9,1543.8,4.9695]
[1744336715512,9.46228,1544.1,1543.8,4.9695]
[1744336715711,1.29653,1543.7,1543.4,14.5739]
[1744336715912,3.2078,1543.9,1543.5,4.9789]
[1744336716116,3.2078,1543.9,1543.7,1.29644]
[1744336716321,3.2078,1545.0,1544.7,1.29557]
[1744336716619,1.29529,1545.1,1544.8,4.9789]
[1744336716821,1.29543,1545.0,1544.8,4.9789]
[1744336717014,5.0062,1545.0,1544.6,4.4172]
[1744336717218,8.214,1545.0,1544.7,4.9789]
[1744336717416,1.2955,1544.9,1544.7,4.9789]
[1744336717620,5.0062,1544.8,1544.6,0.00971565]
[1744336717922,1.29563,1544.7,1544.6,0.00971565]
[1744336718425,5.0062,1544.7,1544.6,0.00971565]
[1744336718621,3.2078,1544.8,1544.6,0.00971565]
[1744336718816,8.1194,1544.8,1544.6,0.00971565]
[1744336720525,5.924,1544.7,1544.6,0.00971565]
[1744336720823,10.8356,1544.7,1544.6,0.00971565]
[1744336721026,12.13123,1544.7,1544.6,0.00971565]
[1744336721824,1.29603,1544.3,1543.8,7.28833]
[1744336722124,5.0246,1544.2,1544.0,4.7875]
[1744336723824,6.32067,1544.2,1544.0,4.7875]
[1744336724027,5.0246,1544.2,1544.0,4.7875]
[1744336725121,6.32065,1544.2,1544.0,4.7875]
[1744336725623,5.0246,1544.2,1544.0,4.7875]
[1744336725817,6.32065,1544.2,1544.0,4.7875]
[1744336726227,5.0246,1544.2,1544.0,4.7875]
[1744336726722,6.32065,1544.2,1544.0,4.7875]
[1744336726928,1.29613,1544.1,1544.0,4.7875]
[1744336727225,1.2961,1544.2,1544.0,4.7875]
[1744336727620,1.29613,1544.1,1544.0,4.7875]
[1744336727828,1.29613,1544.1,1543.9,0.00971565]
[1744336728020,1.2961,1544.2,1543.9,6.08718565]
[1744336728219,4.91771565,1544.3,1543.9,0.00971565]
[1744336728220,3.2078,1544.0,1543.9,0.00971565]
[1744336728426,4.50401,1544.0,1543.9,0.00971565]
[1744336728921,9.55881,1544.0,1543.9,0.00971565]
[1744336732220,4.50401,1544.0,1543.9,0.00971565]
[1744336732415,9.49561,1544.0,1543.9,0.00971565]
[1744336732722,4.9916,1544.0,1543.9,0.00971565]
[1744336734026,6.28781,1544.0,1543.9,0.00971565]
[1744336734528,4.4311,1544.1,1543.9,0.00971565]
[1744336734830,4.9373,1544.1,1543.9,1.30601565]
[1744336735031,4.9373,1544.1,1544.0,5.0242]
[1744336735232,6.23347,1544.1,1543.9,1.30600565]
[1744336735425,6.23347,1544.1,1544.0,5.0242]
[1744336736031,1.29611,1544.2,1544.0,5.0242]
[1744336736231,6.23341,1544.2,1544.0,6.32041]
[1744336736432,9.12551565,1544.3,1544.2,1.29604]
[1744336736731,10.42147565,1544.3,1544.1,6.32029]
[1744336736925,15.27877565,1544.3,1544.1,6.32029]
[1744336737131,15.27877565,1544.3,1544.2,4.7793]
[1744336737526,9.37077565,1544.3,1544.2,4.7793]
[1744336737728,8.07481565,1544.3,1544.2,4.7793]
[1744336737928,6.16297565,1544.3,1544.2,4.7793]
[1744336738118,4.86701565,1544.3,1544.2,4.7793]
[1744336738326,0.00971565,1544.3,1544.2,4.7793]
[1744336738528,0.00971565,1544.3,1544.2,6.07534]
[1744336738726,0.00971565,1544.3,1544.2,4.7793]
[1744336739132,4.86701565,1544.3,1544.2,4.7793]
[1744336739334,6.16297565,1544.3,1544.2,4.7793]
[1744336739529,6.16297565,1544.3,1544.1,5.992]
[1744336739530,1.29604,1544.2,1544.1,5.992]
[1744336739735,5.97054,1544.2,1544.1,5.992]
[1744336740730,13.52161565,1544.3,1544.1,5.992]
[1744336740731,10.31381565,1544.3,1544.1,5.992]
[1744336740937,5.97054,1544.2,1544.1,5.992]
[1744336741129,1.2962,1544.1,1543.9,4.74771565]
[1744336741329,4.6745,1544.1,1543.9,4.74771565]
[1744336741532,5.97068,1544.1,1543.9,4.74771565]